fUSD/lending_fUSD_20240420
["ID","MTS","AMOUNT","RATE_DAILY","PERIOD"]
[323020088,1713592264600,-813.07,0.00015616,2]
[323020089,1713592264609,-500.0,0.00015616,2]
[323020090,1713592264619,-772.36,0.00015616,2]
[323020091,1713592264631,-500.0,0.00015616,2]
[323020092,1713592264641,-1348.85,0.00015616,2]
[323020093,1713592264651,-22419.54,0.00015616,2]
[323020094,1713592264661,-500.0,0.00015616,2]
[323020095,1713592264671,-500.0,0.00015616,2]
[323020096,1713592264680,-528.47,0.00015616,2]
[323020097,1713592264690,-620.291612,0.00015616,2]
[323020098,1713592264699,-620.291612,0.00015616,2]
[323020099,1713592264708,-620.291612,0.00015616,2]
[323020100,1713592264720,-620.291612,0.00015616,2]
[323020101,1713592264729,-1534.1,0.00015616,2]
[323020102,1713592264738,-1012.74,0.00015616,2]
[323020103,1713592264747,-620.291612,0.00015616,2]
[323020104,1713592264756,-500.0,0.00015616,2]
[323020105,1713592264766,-1832.0,0.00015616,2]
[323020106,1713592264774,-620.291612,0.00015616,2]
[323020107,1713592264784,-620.291612,0.00015616,2]
[323020108,1713592264793,-620.291612,0.00015616,2]
[323020109,1713592264802,-1760.49,0.00015616,2]
[323020110,1713592264811,-500.0,0.00015616,2]
[323020111,1713592264821,-500.0,0.00015616,2]
[323020112,1713592264830,-1698.88,0.00015616,2]
[323020113,1713592264839,-500.0,0.00015616,2]
[323020114,1713592264848,-879.94,0.00015616,2]
[323020115,1713592264858,-500.0,0.00015616,2]
[323020116,1713592264867,-2043.72,0.00015616,2]
[323020117,1713592264883,-500.0,0.00015616,2]
[323020118,1713592264893,-500.0,0.00015616,2]
[323020119,1713592264902,-151.0,0.00015616,2]
[323020120,1713592264911,-255.850415,0.00015616,2]
[323020121,1713592264920,-500.0,0.00015616,2]
[323020122,1713592264930,-500.0,0.00015616,2]
[323020123,1713592264939,-2453.32,0.00015616,2]
[323020124,1713592264949,-500.0,0.00015616,2]
[323020125,1713592264958,-500.0,0.00015616,2]
[323020126,1713592264968,-830.12,0.00015616,2]
[323020127,1713592264977,-500.0,0.00015616,2]
[323020128,1713592264987,-1371.02,0.00015616,2]
[323020129,1713592264996,-500.0,0.00015616,2]
[323020130,1713592265006,-500.0,0.00015616,2]
[323020131,1713592265015,-1610.21,0.00015616,2]
[323020132,1713592265026,-500.0,0.00015616,2]
[323020133,1713592265037,-500.0,0.00015616,2]
[323020134,1713592265047,-1379.12,0.00015616,2]
[323020135,1713592265057,-1147.37,0.00015616,2]
[323020136,1713592265068,-500.0,0.00015616,2]
[323020137,1713592265078,-591.33,0.00015616,2]
[323020138,1713592265088,-679.8,0.00015616,2]
[323020139,1713592265098,-880.94,0.00015616,2]
[323020140,1713592265108,-500.0,0.00015616,2]
[323020141,1713592265118,-500.0,0.00015616,2]
[323020142,1713592265131,-14950.61,0.00015616,2]
[323020143,1713592265141,-2266.82,0.00015616,2]
[323020144,1713592265151,-693.93,0.00015616,2]
[323020145,1713592265161,-991.06,0.00015616,2]
[323020146,1713592265171,-692.74,0.00015616,2]
[323020147,1713592265181,-1203.79,0.00015616,2]
[323020148,1713592265191,-1159.46,0.00015616,2]
[323020149,1713592265201,-947.12,0.00015616,2]
[323020150,1713592265210,-2294.99,0.00015616,2]
[323020151,1713592265219,-500.0,0.00015616,2]
[323020152,1713592265229,-500.0,0.00015616,2]
[323020153,1713592265238,-2185.86,0.00015616,2]
[323020154,1713592265247,-914.1,0.00015616,2]
[323020155,1713592265257,-1704.66,0.00015616,2]
[323020156,1713592265271,-542.12,0.00015616,2]
[323020157,1713592265280,-500.0,0.00015616,2]
[323020158,1713592265289,-1650.39,0.00015616,2]
[323020159,1713592265299,-1202.89,0.00015616,2]
[323020160,1713592265308,-559.59,0.00015616,2]
[323020161,1713592265319,-658.05,0.00015616,2]
[323020162,1713592265328,-4909.01,0.00015616,2]
[323020163,1713592265337,-500.0,0.00015616,2]
[323020164,1713592265349,-500.0,0.00015616,2]
[323020165,1713592265358,-500.0,0.00015616,2]
[323020166,1713592265368,-3981.7,0.00015616,2]
[323020167,1713592265380,-500.0,0.00015616,2]
[323020168,1713592265390,-2750.02,0.00015616,2]
[323020169,1713592265399,-500.0,0.00015616,2]
[323020170,1713592265409,-500.0,0.00015616,2]
[323020171,1713592265418,-151.0,0.00015616,2]
[323020172,1713592265427,-151.0,0.00015616,2]
[323020173,1713592265437,-151.0,0.00015616,2]
[323020174,1713592265446,-151.0,0.00015616,2]
[323020175,1713592265455,-188.444415,0.00015616,2]
[323020176,1713592265466,-188.444415,0.00015616,2]
[323020177,1713592265475,-2322.46,0.00015616,2]
[323020178,1713592265484,-188.444415,0.00015616,2]
[323020179,1713592265494,-2966.08,0.00015616,2]
[323020180,1713592265503,-188.444415,0.00015616,2]
[323020181,1713592265512,-574.36,0.00015616,2]
[323020182,1713592265521,-992.99,0.00015616,2]
[323020183,1713592265531,-528.097295,0.00015616,2]
[323020184,1713592265540,-528.097295,0.00015616,2]
[323020185,1713592265549,-528.097295,0.00015616,2]
[323020186,1713592265558,-500.0,0.00015616,2]
[323020187,1713592265567,-528.097295,0.00015616,2]
[323020188,1713592265576,-18375.7,0.00015616,2]
[323020189,1713592265585,-587.1,0.00015616,2]
[323020190,1713592265595,-188.444415,0.00015616,2]
[323020191,1713592265604,-1294.42,0.00015616,2]
[323020192,1713592265613,-188.444415,0.00015616,2]
[323020193,1713592265625,-500.0,0.00015616,2]
[323020194,1713592265634,-528.097295,0.00015616,2]
[323020195,1713592265643,-188.444415,0.00015616,2]
[323020196,1713592265653,-500.0,0.00015616,2]
[323020197,1713592265662,-151.0,0.00015616,2]
[323020198,1713592265671,-188.444415,0.00015616,2]
[323020199,1713592265680,-151.0,0.00015616,2]
[323020200,1713592265694,-2661.87,0.00015616,2]
[323020201,1713592265703,-528.097295,0.00015616,2]
[323020202,1713592265713,-1942.77,0.00015616,2]
[323020203,1713592265722,-528.097295,0.00015616,2]
[323020204,1713592265732,-151.0,0.00015616,2]
[323020205,1713592265741,-4859.82,0.00015616,2]
[323020206,1713592265751,-500.0,0.00015616,2]
[323020207,1713592265760,-528.097295,0.00015616,2]
[323020208,1713592265770,-151.0,0.00015616,2]
[323020209,1713592265779,-787.89,0.00015616,2]
[323020210,1713592265788,-1271.01,0.00015616,2]
[323020211,1713592265798,-500.0,0.00015616,2]
[323020212,1713592265807,-500.0,0.00015616,2]
[323020213,1713592265816,-813.62,0.00015616,2]
[323020214,1713592265826,-500.0,0.00015616,2]
[323020215,1713592265835,-5013.87,0.00015616,2]
[323020216,1713592265844,-500.0,0.00015616,2]
[323020217,1713592265853,-500.0,0.00015616,2]
[323020218,1713592265863,-500.0,0.00015616,2]
[323020219,1713592265875,-500.0,0.00015616,2]
[323020220,1713592265884,-260.5122861,0.00015616,2]
[323020221,1713592265893,-500.0,0.00015616,2]
[323020222,1713592265903,-500.0,0.00015616,2]
[323020223,1713592265912,-500.0,0.00015616,2]
[323020224,1713592265922,-2223.3,0.00015616,2]
[323020225,1713592265931,-8798.16,0.00015616,2]
[323020226,1713592265941,-500.0,0.00015616,2]
[323020227,1713592265951,-1365.39,0.00015616,2]
[323020228,1713592265960,-784.79,0.00015616,2]
[323020229,1713592265969,-524.04,0.00015616,2]
[323020230,1713592265979,-813.77,0.00015616,2]
[323020231,1713592265989,-1590.01,0.00015616,2]
[323020232,1713592265998,-500.0,0.00015616,2]
[323020233,1713592266008,-500.0,0.00015616,2]
[323020234,1713592266017,-500.0,0.00015616,2]
[323020235,1713592266026,-878.55,0.00015616,2]
[323020236,1713592266036,-421.89213561,0.00015616,2]
[323020237,1713592266045,-1086.29,0.00015616,2]
[323020238,1713592266055,-500.0,0.00015616,2]
[323020239,1713592266064,-500.0,0.00015616,2]
[323020240,1713592266073,-840.54,0.00015616,2]
[323020241,1713592266083,-500.0,0.00015616,2]
[323020242,1713592266093,-1783.8,0.00015616,2]
[323020243,1713592266102,-1143.1,0.00015616,2]
[323020244,1713592266111,-500.0,0.00015616,2]
[323020245,1713592266120,-1243.73,0.00015616,2]
[323020246,1713592266131,-500.0,0.00015616,2]
[323020247,1713592266140,-631.94593006,0.00015616,2]
[323020248,1713592266150,-1005.52,0.00015616,2]
[323020249,1713592266159,-1627.34,0.00015616,2]
[323020250,1713592266169,-155.508194,0.00015616,2]
[323020251,1713592266178,-500.0,0.00015616,2]
[323020252,1713592266188,-2463.97,0.00015616,2]
[323020253,1713592266197,-500.0,0.00015616,2]
[323020254,1713592266207,-580.01,0.00015616,2]
[323020255,1713592266216,-500.0,0.00015616,2]
[323020256,1713592266226,-566.27,0.00015616,2]
[323020257,1713592266235,-500.0,0.00015616,2]
[323020258,1713592266244,-1534.91,0.00015616,2]
[323020259,1713592266254,-151.0,0.00015616,2]
[323020260,1713592266267,-690.01,0.00015616,2]
[323020261,1713592266276,-3874.24,0.00015616,2]
[323020262,1713592266285,-151.0,0.00015616,2]
[323020263,1713592266294,-1387.92,0.00015616,2]
[323020264,1713592266304,-151.0,0.00015616,2]
[323020265,1713592266314,-151.0,0.00015616,2]
[323020266,1713592266324,-500.0,0.00015616,2]
[323020267,1713592266333,-1338.05,0.00015616,2]
[323020268,1713592266344,-509.8,0.00015616,2]
[323020269,1713592266354,-992.12,0.00015616,2]
[323020270,1713592266363,-807.58,0.00015616,2]
[323020271,1713592266374,-500.0,0.00015616,2]
[323020272,1713592266383,-3244.36,0.00015616,2]
[323020273,1713592266392,-500.0,0.00015616,2]
[323020274,1713592266402,-151.0,0.00015616,2]
[323020275,1713592266411,-1468.96,0.00015616,2]
[323020276,1713592266420,-500.0,0.00015616,2]
[323020277,1713592266429,-228.417759,0.00015616,2]
[323020278,1713592266439,-500.0,0.00015616,2]
[323020279,1713592266448,-1980.49,0.00015616,2]
[323020280,1713592266458,-500.0,0.00015616,2]
[323020281,1713592266467,-5117.96,0.00015616,2]
[323020282,1713592266476,-732.68,0.00015616,2]
[323020283,1713592266486,-500.0,0.00015616,2]
[323020284,1713592266495,-500.0,0.00015616,2]
[323020285,1713592266504,-500.0,0.00015616,2]
[323020286,1713592266513,-3610.24,0.00015616,2]
[323020287,1713592266523,-151.0,0.00015616,2]
[323020288,1713592266532,-2195.67,0.00015616,2]
[323020289,1713592266541,-500.0,0.00015616,2]
[323020290,1713592266550,-500.0,0.00015616,2]
[323020291,1713592266559,-164.965585,0.00015616,2]
[323020292,1713592266569,-729.4,0.00015616,2]
[323020293,1713592266578,-164.965585,0.00015616,2]
[323020294,1713592266588,-164.965585,0.00015616,2]
[323020295,1713592266598,-164.965585,0.00015616,2]
[323020296,1713592266607,-709.51,0.00015616,2]
[323020297,1713592266616,-500.0,0.00015616,2]
[323020298,1713592266627,-1179.4,0.00015616,2]
[323020299,1713592266637,-500.0,0.00015616,2]
[323020300,1713592266646,-151.0,0.00015616,2]
[323020301,1713592266655,-151.0,0.00015616,2]
[323020302,1713592266665,-2280.48,0.00015616,2]
[323020303,1713592266675,-2638.47,0.00015616,2]
[323020304,1713592266684,-151.0,0.00015616,2]
[323020305,1713592266693,-153.594007,0.00015616,2]
[323020306,1713592266703,-164.965585,0.00015616,2]
[323020307,1713592266712,-1275.38,0.00015616,2]
[323020308,1713592266722,-164.965585,0.00015616,2]
[323020309,1713592266731,-1650.92,0.00015616,2]
[323020310,1713592266740,-936.99,0.00015616,2]
[323020311,1713592266750,-164.965585,0.00015616,2]
[323020312,1713592266759,-500.0,0.00015616,2]
[323020313,1713592266769,-164.965585,0.00015616,2]
[323020314,1713592266779,-500.0,0.00015616,2]
[323020315,1713592266789,-500.0,0.00015616,2]
[323020316,1713592266798,-500.0,0.00015616,2]
[323020317,1713592266808,-593.16,0.00015616,2]
[323020318,1713592266818,-500.0,0.00015616,2]
[323020319,1713592266827,-500.0,0.00015616,2]
[323020320,1713592266837,-500.0,0.00015616,2]
[323020321,1713592266846,-1045.95,0.00015616,2]
[323020322,1713592266858,-1084.2,0.00015616,2]
[323020323,1713592266874,-791.81,0.00015616,2]
[323020324,1713592266886,-2170.86,0.00015616,2]
[323020325,1713592266901,-1264.0,0.00015616,2]
[323020326,1713592266911,-151.0,0.00015616,2]
[323020327,1713592266922,-766.62,0.00015616,2]
[323020328,1713592266933,-151.0,0.00015616,2]
[323020329,1713592266944,-500.0,0.00015616,2]
[323020330,1713592266956,-155.442691,0.00015616,2]
[323020331,1713592266970,-500.0,0.00015616,2]
[323020332,1713592266985,-500.0,0.00015616,2]
[323020333,1713592267002,-2758.24,0.00015616,2]
[323020334,1713592267015,-782.83,0.00015616,2]
[323020335,1713592267029,-233.141326,0.00015616,2]
[323020336,1713592267040,-233.141326,0.00015616,2]
[323020337,1713592267056,-233.141326,0.00015616,2]
[323020338,1713592267066,-583.15,0.00015616,2]
[323020339,1713592267076,-500.0,0.00015616,2]
[323020340,1713592267087,-500.0,0.00015616,2]
[323020341,1713592267097,-233.141326,0.00015616,2]
[323020342,1713592267108,-3092.87,0.00015616,2]
[323020343,1713592267120,-877.86,0.00015616,2]
[323020344,1713592267132,-500.0,0.00015616,2]
[323020345,1713592267145,-233.141326,0.00015616,2]
[323020346,1713592267156,-233.141326,0.00015616,2]
[323020347,1713592267175,-500.0,0.00015616,2]
[323020348,1713592267188,-233.141326,0.00015616,2]
[323020349,1713592267199,-233.141326,0.00015616,2]
[323020350,1713592267210,-1611.7,0.00015616,2]
[323020351,1713592267222,-1659.87,0.00015616,2]
[323020352,1713592267233,-402.30526302,0.00015616,2]
[323020353,1713592267245,-1140.61,0.00015616,2]
[323020354,1713592267255,-500.0,0.00015616,2]
[323020355,1713592267266,-1159.14,0.00015616,2]
[323020356,1713592267281,-2378.61,0.00015616,2]
[323020357,1713592267292,-12106.72,0.00015616,2]
[323020358,1713592267313,-1297.79,0.00015616,2]
[323020359,1713592267324,-3785.38,0.00015616,2]
[323020360,1713592267335,-500.0,0.00015616,2]
[323020361,1713592267345,-275.65932285,0.00015616,2]
[323020362,1713592267356,-613.28,0.00015616,2]
[323020363,1713592267365,-3891.35,0.00015616,2]
[323020364,1713592267378,-875.63,0.00015616,2]
[323020365,1713592267388,-608.88,0.00015616,2]
[323020366,1713592267398,-552.55,0.00015616,2]
[323020367,1713592267407,-500.0,0.00015616,2]
[323020368,1713592267417,-5693.44,0.00015616,2]
[323020369,1713592267427,-1449.06,0.00015616,2]
[323020370,1713592267436,-500.0,0.00015616,2]
[323020371,1713592267447,-500.0,0.00015616,2]
[323020372,1713592267457,-500.0,0.00015616,2]
[323020373,1713592267467,-2009.11,0.00015616,2]
[323020374,1713592267476,-218.944853,0.00015616,2]
[323020375,1713592267486,-151.0,0.00015616,2]
[323020376,1713592267496,-151.0,0.00015616,2]
[323020377,1713592267505,-218.944853,0.00015616,2]
[323020378,1713592267515,-151.0,0.00015616,2]
[323020379,1713592267525,-218.944853,0.00015616,2]
[323020380,1713592267535,-500.0,0.00015616,2]
[323020381,1713592267545,-2331.04,0.00015616,2]
[323020382,1713592267554,-8683.86,0.00015616,2]
[323020383,1713592267565,-1537.5,0.00015616,2]
[323020384,1713592267575,-500.0,0.00015616,2]
[323020385,1713592267586,-1252.64,0.00015616,2]
[323020386,1713592267596,-500.0,0.00015616,2]
[323020387,1713592267606,-2944.5,0.00015616,2]
[323020388,1713592267617,-500.4,0.00015616,2]
[323020389,1713592267628,-500.0,0.00015616,2]
[323020390,1713592267638,-218.944853,0.00015616,2]
[323020391,1713592267648,-218.944853,0.00015616,2]
[323020392,1713592267657,-218.944853,0.00015616,2]
[323020393,1713592267667,-1605.3,0.00015616,2]
[323020394,1713592267678,-500.0,0.00015616,2]
[323020395,1713592267688,-1878.96,0.00015616,2]
[323020396,1713592267698,-2566.41,0.00015616,2]
[323020397,1713592267708,-1141.28,0.00015616,2]
[323020398,1713592267717,-694.6,0.00015616,2]
[323020399,1713592267727,-2562.39,0.00015616,2]
[323020400,1713592267737,-500.0,0.00015616,2]
[323020401,1713592267747,-3066.84,0.00015616,2]
[323020402,1713592267757,-500.0,0.00015616,2]
[323020403,1713592267766,-500.0,0.00015616,2]
[323020404,1713592267776,-625.29,0.00015616,2]
[323020405,1713592267787,-500.0,0.00015616,2]
[323020406,1713592267797,-500.0,0.00015616,2]
[323020407,1713592267809,-1116.99,0.00015616,2]
[323020408,1713592267819,-500.0,0.00015616,2]
[323020409,1713592267830,-2603.5,0.00015616,2]
[323020410,1713592267842,-500.0,0.00015616,2]
[323020411,1713592267852,-500.0,0.00015616,2]
[323020412,1713592267862,-151.0,0.00015616,2]
[323020413,1713592267872,-151.0,0.00015616,2]
[323020414,1713592267885,-151.0,0.00015616,2]
[323020415,1713592267895,-1544.91,0.00015616,2]
[323020416,1713592267906,-500.0,0.00015616,2]
[323020417,1713592267916,-2306.74,0.00015616,2]
[323020418,1713592267927,-1449.07,0.00015616,2]
[323020419,1713592267937,-3213.45,0.00015616,2]
[323020420,1713592267947,-500.0,0.00015616,2]
[323020421,1713592267958,-500.0,0.00015616,2]
[323020422,1713592267968,-500.0,0.00015616,2]
[323020423,1713592267979,-500.0,0.00015616,2]
[323020424,1713592267990,-577.57,0.00015616,2]
[323020425,1713592268000,-366.0,0.00015616,2]
[323020426,1713592268011,-700.58,0.00015616,2]
[323020427,1713592268022,-418.94,0.00015616,2]
[323020428,1713592268032,-418.94,0.00015616,2]
[323020429,1713592268042,-418.94,0.00015616,2]
[323020430,1713592268052,-418.94,0.00015616,2]
[323020431,1713592268062,-518.0,0.00015617,2]
[323020432,1713592268072,-522.0,0.00015617,2]
[323020433,1713592268082,-200.0,0.00015622,2]
[323020434,1713592268093,-1000.0,0.00015622,2]
[323020435,1713592268103,-500.0,0.00015622,2]
[323020436,1713592268112,-200.0,0.00015622,2]
[323020437,1713592268122,-211.2,0.00015629,2]
[323020438,1713592268134,-1032.64726523,0.00015634,2]
[323020439,1713592268144,-461.0,0.00015636,2]
[323020440,1713592268154,-2294.0,0.00015636,2]
[323020441,1713592268163,-969.0,0.00015636,2]
[323020442,1713592268173,-1393.0,0.00015636,2]
[323020443,1713592268183,-1107.076,0.00015636,2]
[323020444,1713592268193,-1228.0,0.00015636,2]
[323020445,1713592268204,-541.0,0.00015636,2]
[323020446,1713592268214,-1951.0,0.00015636,2]
[323020447,1713592268224,-807.0,0.00015636,2]
[323020448,1713592268234,-257.0,0.00015636,2]
[323020449,1713592268246,-436.0,0.00015636,2]
[323020450,1713592268256,-609.0,0.00015636,2]
[323020451,1713592268269,-2444.0,0.00015636,2]
[323020452,1713592268279,-399.0,0.00015636,2]
[323020453,1713592268290,-1474.0,0.00015636,2]
[323020454,1713592268300,-3118.0,0.00015636,2]
[323020455,1713592268310,-150.0,0.00015636,2]
[323020456,1713592268320,-1640.0,0.00015636,2]
[323020457,1713592268330,-214.0,0.00015636,2]
[323020458,1713592268340,-443.0,0.00015636,2]
[323020459,1713592268351,-355.0,0.00015636,2]
[323020460,1713592268361,-1140.0,0.00015636,2]
[323020461,1713592268372,-2872.995,0.00015636,2]
[323020462,1713592268384,-4342.474,0.00015636,2]
[323020463,1713592268394,-603.028,0.00015636,2]
[323020464,1713592268403,-234.043,0.00015636,2]
[323020465,1713592268413,-155.852947,0.00015636,2]
[323020466,1713592268681,-151.0,0.00015636,2]
[323020467,1713592268692,-152.906211,0.00015636,2]
[323020468,1713592268704,-152.906211,0.00015636,2]
[323020469,1713592268714,-540.766131,0.00015636,2]
[323020470,1713592268725,-540.766131,0.00015636,2]
[323020471,1713592268736,-306.036012,0.00015636,2]
[323020472,1713592268747,-306.036012,0.00015636,2]
[323020473,1713592268757,-359336.44774201,0.000157,2]
[323020474,1713592268788,-101111.82143099,0.000157,2]
[323020475,1713592268800,-151.0,0.000157,2]
[323020476,1713592268812,-151.0,0.000157,2]
[323020477,1713592268833,-159.311654,0.000157,2]
[323020478,1713592268845,-199.025519,0.000157,2]
[323020479,1713592268859,-199.025519,0.000157,2]
[323020480,1713592268874,-151.0,0.000157,2]
[323020481,1713592268890,-274.798174,0.000157,2]
[323020482,1713592268902,-151.0,0.000157,2]
[323020483,1713592268914,-274.798174,0.000157,2]
[323020484,1713592268924,-151.0,0.000157,2]
[323020485,1713592268934,-168.167123,0.000157,2]
[323020486,1713592268962,-151.0,0.000157,2]
[323020487,1713592268974,-151.0,0.000157,2]
[323020488,1713592268984,-168.167123,0.000157,2]
[323020489,1713592269000,-151.0,0.000157,2]
[323020490,1713592269012,-152.906211,0.000157,2]
[323020491,1713592269023,-152.906211,0.000157,2]
[323020492,1713592269035,-540.766131,0.000157,2]
[323020493,1713592269046,-540.766131,0.000157,2]
[323020494,1713592269055,-153.994026,0.000157,2]
[323020495,1713592269067,-282.396864,0.000157,2]
[323020496,1713592269089,-151.0,0.000157,2]
[323020497,1713592269099,-153.994023,0.000157,2]
[323020498,1713592269110,-282.396863,0.000157,2]
[323020499,1713592269120,-811.236803,0.000157,2]
[323020500,1713592269132,-29.826286,0.000157,2]
[323020501,1713592270330,-374.73553,0.00015068,2]
[323020502,1713592270360,-125.26447,0.00015068,2]
[323020503,1713592270370,-500.0,0.00015616,2]
[323020504,1713592270380,-276.209726,0.000157,2]
[323020505,1713592270389,-811.236801,0.000157,2]
[323020506,1713592270399,-306.036012,0.000157,2]
[323020507,1713592270409,-237.24158,0.000157,2]
[323020508,1713592270419,-178.314559,0.000157,2]
[323020509,1713592270428,-237.24157,0.000157,2]
[323020510,1713592270438,-222.559406,0.000157,2]
[323020511,1713592270448,-362.123824,0.000157,2]
[323020512,1713592270457,-178.314568,0.000157,2]
[323020513,1713592270467,-13.37489484,0.000157,2]
[323020514,1713592270482,-209.18450416,0.000157,2]
[323020515,1713592270491,-362.123827,0.000157,2]
[323020516,1713592270501,-267.690244,0.000157,2]
[323020517,1713592270511,-294.464797,0.000157,2]
[323020518,1713592270521,-294.464802,0.000157,2]
[323020519,1713592270530,-844.189566,0.000157,2]
[323020520,1713592270540,-2475.23055,0.000157,2]
[323020521,1713592270550,-844.189556,0.000157,2]
[323020522,1713592270560,-151.0,0.000157,2]
[323020523,1713592270570,-401.21634907,0.000157,2]
[323020524,1713592270585,-219.07526293,0.000157,2]
[323020525,1713592270595,-620.291619,0.000157,2]
[323020526,1713592270605,-151.0,0.000157,2]
[323020527,1713592270615,-188.444415,0.000157,2]
[323020528,1713592270626,-528.097295,0.000157,2]
[323020529,1713592270636,-188.444411,0.000157,2]
[323020530,1713592270646,-528.097289,0.000157,2]
[323020531,1713592270656,-151.0,0.000157,2]
[323020532,1713592270666,-151.0,0.000157,2]
[323020533,1713592270676,-164.965585,0.000157,2]
[323020534,1713592270685,-164.965576,0.000157,2]
[323020535,1713592270695,-233.141326,0.000157,2]
[323020536,1713592270704,-233.141326,0.000157,2]
[323020537,1713592270714,-151.0,0.000157,2]
[323020538,1713592270723,-218.944853,0.000157,2]
[323020539,1713592270732,-218.94485,0.000157,2]
[323020540,1713592270742,-151.0,0.000157,2]
[323020541,1713592270751,-333.0,0.0001575,2]
[323020542,1713592270761,-200.0,0.00015752,2]
[323020543,1713592270771,-1000.0,0.00015752,2]
[323020544,1713592270781,-500.0,0.00015752,2]
[323020545,1713592270791,-9509.4928782,0.00015759,2]
[323020546,1713592270800,-1032.64726523,0.00015767,2]
[323020547,1713592270810,-482.0,0.000158,2]
[323020548,1713592270819,-3860.83030008,0.000158,2]
[323020549,1713592270838,-563.65134064,0.000158,2]
[323020550,1713592271924,-1.58166649,0.00015068,2]
[323020551,1713592271937,-498.41833351,0.00015068,2]
[323020552,1713592271947,-151.0,0.00015068,2]
[323020553,1713592271957,-151.0,0.00015068,2]
[323020554,1713592271967,-151.0,0.00015068,2]
[323020555,1713592271977,-500.0,0.00015342,2]
[323020556,1713592271987,-500.0,0.00015616,2]
[323020557,1713592271997,-73.4629596,0.000158,2]
[323020558,1713592272016,-6720.906114,0.000158,2]
[323020559,1713592272613,-151.0,0.00015068,2]
[323020560,1713592272624,-387.1247896,0.00015068,2]
[323020561,1713592272655,-270.42728545,0.00015068,2]
[323020562,1713592592129,44665.54413189,0.00031,120]
[323020563,1713592692036,40198.9897187,0.00031,120]
[323020568,1713592775552,154.73,0.0001611,15]
[323020580,1713593310310,154.73,0.0001611,15]
[323020720,1713593437594,-155.0,0.00012071,2]
[323020721,1713593437603,-207.70305494,0.00012071,2]
[323020723,1713593437612,-404.63791958,0.00012072,2]
[323020725,1713593437622,-2540.35536187,0.00012083,2]
[323020726,1713593437634,-428.57,0.0001222,2]
[323020728,1713593437643,-176.01,0.00013783,2]
[323020730,1713593437653,-856.0,0.00013861,2]
[323020732,1713593437662,-184.05,0.00013918,2]
[323020733,1713593437673,-996.0291,0.0001398,2]
[323020735,1713593437682,-734.25,0.00013994,2]
[323020736,1713593437692,-180.0,0.00014065,2]
[323020737,1713593437701,-150.0,0.00014079,2]
[323020738,1713593437713,-23854.56,0.0001408,2]
[323020739,1713593437722,-499.99,0.0001408,2]
[323020740,1713593437732,-8427.73,0.00014096,2]
[323020741,1713593437741,-173.65,0.00014144,2]
[323020742,1713593437751,-324.14,0.00014247,2]
[323020743,1713593437760,-698.42,0.00014247,2]
[323020744,1713593437769,-162.7,0.00014247,2]
[323020745,1713593437779,-150.0,0.00014247,2]
[323020746,1713593437788,-350.29,0.00014247,2]
[323020747,1713593437799,-162.7,0.00014247,2]